{"text_format":"1","workbook":"xlsx","n_sheets":2,"sheets":["Anmeldeliste","Anleitung"],"not_rendered":{"charts":0,"images":1,"macros":1,"external_links":0,"defined_names":10,"comments":2,"pivot_tables":0},"unopened":[],"bounds":{"document_bytes":16777216,"sheet_cells":100000,"rows_first":2000,"rows_last":500,"rows_between":2000,"halvings":0,"cell_chars":16384,"cell_head_chars":4096},"cells_cut":0,"cells_raw":0,"read":"whole","date_system":"1904"}

{"sheet":"Anmeldeliste","index":0,"n_rows":79,"n_cols":16,"rows_kept":79,"cut":false,"hidden":false,"merged":[]}
[null,null,null,null,null,null,null,null,null,null,"Jahrgänge","katf","katm","Geschlechter",null,"Veranstaltungen"]
[null,null,null,null,null,null,null,null,null,null,2006,"DU18","HU18","D",null,"21.01.2024: 1167 Hubel-Cup, Selital"]
[null,null,null,null,null,null,null,null,null,null,2007,"DU18","HU18","H",null,"21.01.2024: 1168 SCS Riesenslalom, Selital"]
[null,null,null,null,null,null,null,null,null,null,2008,"MU16","KU16",null,null,"04.02.2024: 1146 Europa-Park Cup 2024, Sörenberg"]
[null,null,null,null,null,null,null,null,null,null,2009,"MU16","KU16",null,null,"11.02.2024: 1147 Rüschegger Riesenslalom 1, Schwarzsee"]
[null,null,null,null,null,null,null,null,null,null,2010,"MU14","KU14",null,null,"11.02.2024: 1149 Rüschegger Riesenslalom 2, Schwarzsee"]
[null,null,null,null,null,null,null,null,null,null,2011,"MU14","KU14",null,null,"18.02.2024: 1151 SC Schangnau Animationsrennen, Bumbach"]
[null,null,null,null,null,null,null,null,null,null,2012,"MU12","KU12",null,null,"24.02.2024: 1153 Bäri-Cup, Schwarzsee"]
[null,null,null,null,null,null,null,null,null,null,2013,"MU12","KU12",null,null,"25.02.2024: 1155 Jugendskirennen Grenchenberg Rennen 2, Bumbach"]
[null,null,null,null,null,null,null,null,null,null,2014,"MU10","KU10",null,null,"25.02.2024: 1157 Jugendskirennen Grenchenberg Rennen 4, Bumbach"]
[null,null,null,null,null,null,null,null,null,null,2015,"MU10","KU10",null,null,"03.03.2024: 1159 45. Balmberg Jugend Skirennen, Schönried Horneggli"]
[null,null,null,null,null,null,null,null,null,null,2016,"MU8","KU8",null,null,"03.03.2024: 1160 31. Animationsrennen Ski Club Günsberg, Schönried Horneggli"]
[null,null,null,null,null,null,null,null,null,null,2017,"MU8","KU8",null,null,"17.03.2024: 1163 SC Rüti Animationsrennen, Metsch-Elsigen"]
[null,null,null,null,null,null,null,null,null,null,2018,"MU8","KU8",null,null,"07.04.2024: 1165 Raiffeisen - SSM Trophy Schlussevent, Adelboden Engstligenalp"]
[null,null,null,null,null,null,null,null,null,null,2019,"MU8","KU8"]
[null,null,null,null,null,null,null,null,null,null,2020,"MU8","KU8"]
[null,null,null,null,null,null,null,null,null,null,2021,"MU8","KU8"]
[]
[null,null,null,null,null,null,null,null,null,null,1]
[]
[null,null,null,null,null,null,null,null,null,null,null,null," "]
[null,"Anmeldeformular für nicht-lizenzierte Fahrer 2024"]
[null,"Anmeldung für lizenzierte Athleten bitte nur online via www.swiss-ski-kwo.ch"]
[]
[null,"Verantwortliche/r für die Anmeldung:",null,null,null,"(ohne Skiclub: bitte Wohnort angeben)"]
[null,"Club:",null,null,null,"Skiclub Alperösli"]
[null,"Name, Vorname:",null,null,null,"Mustermann Hans"]
[null,"Telefon 1: ",null,null,null,"079 987 65 43"]
[null,"Telefon 2: ",null,null,null,"034 987 65 43"]
[null,"E-Mail:",null,null,null,"hans.mustermann[at]provider.ch"]
[]
[null,"Anmeldung für folgende Veranstaltung(en): "]
[null,"ccc"]
[null,"ccc"]
[null,"ccc"]
[null,"ccc"]
[]
[]
[]
[]
[null,"X","Nachname","Vorname","Jahrgang","Geschlecht","Club","Kat."," ","istleer"]
[null,null,"Allwetter","Fritz",2014,"D",{"$f":"IF(ISBLANK($C42),\"\",$F$26)","v":"Skiclub Alperösli"},{"$f":"IFERROR(IF($F42=\"D\",INDEX(KATF,MATCH($E42,Jahrgänge,0)),INDEX(katm,MATCH($E42,Jahrgänge,0))),\"\")","v":"MU10"},null,{"$f":"IF(ISBLANK(C42),0,1)","v":1}]
[null,"x","Rägeschüch","Vreni",2014,"H",{"$f":"IF(ISBLANK($C43),\"\",$F$26)","v":"Skiclub Alperösli"},{"$f":"IFERROR(IF($F43=\"D\",INDEX(KATF,MATCH($E43,Jahrgänge,0)),INDEX(katm,MATCH($E43,Jahrgänge,0))),\"\")","v":"KU10"},null,{"$f":"IF(ISBLANK(C43),0,1)","v":1}]
[null,null,null,null,null,null,{"$f":"IF(ISBLANK($C44),\"\",$F$26)","v":""},{"$f":"IFERROR(IF($F44=\"D\",INDEX(KATF,MATCH($E44,Jahrgänge,0)),INDEX(katm,MATCH($E44,Jahrgänge,0))),\"\")","v":""},null,{"$f":"IF(ISBLANK(C44),0,1)","v":0}]
[null,null,null,null,null,null,"","",null,0]
[null,null,null,null,null,null,null,"",null,0]
[null,null,null,null,null,null,"","",null,0]
[null,null,null,null,null,null,"","",null,0]
[null,null,null,null,null,null,"","",null,0]
[null,null,null,null,null,null,"","",null,0]
[null,null,null,null,null,null,"","",null,0]
[null,null,null,null,null,null,"","",null,0]
[null,null,null,null,null,null,"","",null,0]
[null,null,null,null,null,null,"","",null,0]
[null,null,null,null,null,null,"","",null,0]
[null,null,null,null,null,null,"","",null,0]
[null,null,null,null,null,null,"","",null,0]
[null,null,null,null,null,null,"","",null,0]
[null,null,null,null,null,null,"","",null,0]
[null,null,null,null,null,null,"","",null,0]
[null,null,null,null,null,null,"","",null,0]
[null,null,null,null,null,null,"","",null,0]
[null,null,null,null,null,null,"","",null,0]
[null,null,null,null,null,null,"","",null,0]
[null,null,null,null,null,null,"","",null,0]
[null,null,null,null,null,null,"","",null,0]
[null,null,null,null,null,null,"","",null,0]
[null,null,null,null,null,null,"","",null,0]
[null,null,null,null,null,null,"","",null,0]
[null,null,null,null,null,null,"","",null,0]
[null,null,null,null,null,null,"","",null,0]
[null,null,null,null,null,null,"","",null,0]
[null,null,null,null,null,null,"","",null,0]
[null,null,null,null,null,null,"","",null,0]
[null,null,null,null,null,null,"","",null,0]
[null,null,null,null,null,null,"","",null,0]
[null,null,null,null,null,null,"","",null,0]
[null,null,null,null,null,null,"","",null,0]
[null,null,null,null,null,null,{"$f":"IF(ISBLANK($C79),\"\",$F$26)","v":""},{"$f":"IFERROR(IF($F79=\"D\",INDEX(KATF,MATCH($E79,Jahrgänge,0)),INDEX(katm,MATCH($E79,Jahrgänge,0))),\"\")","v":""},null,{"$f":"IF(ISBLANK(C79),0,1)","v":0}]

{"sheet":"Anleitung","index":1,"n_rows":71,"n_cols":9,"rows_kept":71,"cut":false,"hidden":false,"merged":[]}
["Bedienungshilfe zur Anmeldeliste"]
[]
[]
[]
[]
[]
[]
[]
[]
[]
[]
[]
[]
[]
[]
[]
[]
[]
[]
[]
[]
[]
[]
[]
[]
[]
[]
[]
[]
[]
[]
[]
[]
[]
[]
[]
[]
[]
[]
[]
[]
[]
[]
[null,"Anmeldeformular für nicht-lizenzierte Fahrer 20xx"]
[null,"Anmeldung für lizenzierte Athleten bitte nur online via www.swiss-ski-kwo.ch"]
[]
[null,"Verantwortliche/r für die Anmeldung:",null,null,null,"(ohne Skiclub: bitte Wohnort angeben)"]
[null,"Club:",null,null,null,"Skiclub Alperösli"]
[null,"Name, Vorname:",null,null,null,"Mustermann Hans"]
[null,"Telefon 1: ",null,null,null,"079 987 65 43"]
[null,"Telefon 2: ",null,null,null,"034 987 65 43"]
[null,"E-Mail:",null,null,null,"hans.mustermann[at]provider.ch"]
[]
[null,"Anmeldung für folgende Veranstaltung(en): "]
[null,"ccc","07.02.2016: (RS1) Rüschegger Riesenslalom 1"]
[null,"ccc","07.02.2016: (RS2) Rüschegger Riesenslalom 2"]
[null,"ccc"]
[null,"ccc"]
[]
[]
[]
[]
[null,"X","Nachname","Vorname","Jahrgang","Geschlecht","Club","Kat."," "]
[null,null,"Rägeschüch","Vreni",2004,"D","Skiclub Alperösli","MU12"]
[null,"x","Allwetter","Fritz",2005,"H","Skiclub Alperösli","KU12"]
[null,null,null,null,null,null,{"$f":"IF(ISBLANK($C66),\"\",$F$25)","v":""},{"$f":"IF(ISBLANK($E66)+ISBLANK($F66)>0,\"\",UPPER($F66)&VLOOKUP($E66,$E$2:$F$17,2,0))","v":""}]
[null,null,null,null,null,null,"",""]
[null,null,null,null,null,null,"",""]
[null,null,null,null,null,null,"",""]
[null,null,null,null,null,null,"",""]
[null,null,null,null,null,null,"",""]